[Event "December 19 Early 2023"]
[Site "https://www.chess.com"]
[Date "2023.12.19"]
[Round "1"]
[White "Ronka, Erik"]
[Black "Deac, Bogdan-Daniel"]
[Result "0-1"]
[Board "16"]
[TimeControl "180+1"]
[WhiteFideId "505080"]
[BlackFideId "1226380"]
[WhiteElo "2264"]
[BlackElo "2641"]
[WhiteTeam "FIN"]
[BlackTeam "ROU"]
[WhiteClock "0:00:01"]
[BlackClock "0:01:34"]

1. e4 {[%clk 0:03:00]}  c6 {[%clk 0:02:59]} 2. d4 {[%clk 0:03:00]}  d5 {[%clk 0:03:00]} 3. Nd2 {[%clk 0:03:01]}  Qc7 {[%clk 0:03:00]} 4. Ngf3 {[%clk 0:02:59]}  Bg4 {[%clk 0:03:00]} 5. Bd3 {[%clk 0:02:54]}  e6 {[%clk 0:03:00]} 6. O-O {[%clk 0:02:42]}  Nf6 {[%clk 0:03:00]} 7. h3 {[%clk 0:02:24]}  Bh5 {[%clk 0:02:59]} 8. Qe2 {[%clk 0:02:24]}  Be7 {[%clk 0:02:59]} 9. c3 {[%clk 0:02:24]}  c5 {[%clk 0:02:45]} 10. dxc5 {[%clk 0:02:10]}  Bxc5 {[%clk 0:02:44]} 11. e5 {[%clk 0:01:36]}  Nfd7 {[%clk 0:02:43]} 12. Re1 {[%clk 0:01:36]}  Nc6 {[%clk 0:02:42]} 13. g4 {[%clk 0:01:18]}  Bg6 {[%clk 0:02:40]} 14. Nb3 {[%clk 0:01:18]}  Bxd3 {[%clk 0:02:33]} 15. Qxd3 {[%clk 0:01:19]}  Ncxe5 {[%clk 0:02:29]} 16. Nxe5 {[%clk 0:01:18]}  Nxe5 {[%clk 0:02:30]} 17. Rxe5 {[%clk 0:00:47]}  Bxf2+ {[%clk 0:02:28]} 18. Kxf2 {[%clk 0:00:47]}  Qxe5 {[%clk 0:02:28]} 19. Qg3 {[%clk 0:00:43]}  Qxg3+ {[%clk 0:02:22]} 20. Kxg3 {[%clk 0:00:44]}  e5 {[%clk 0:02:22]} 21. Be3 {[%clk 0:00:40]}  b6 {[%clk 0:02:22]} 22. a4 {[%clk 0:00:38]}  f6 {[%clk 0:02:15]} 23. a5 {[%clk 0:00:38]}  Kf7 {[%clk 0:02:15]} 24. Ra4 {[%clk 0:00:26]}  Rhb8 {[%clk 0:02:14]} 25. axb6 {[%clk 0:00:14]}  axb6 {[%clk 0:02:13]} 26. Rb4 {[%clk 0:00:15]}  b5 {[%clk 0:02:09]} 27. Nc5 {[%clk 0:00:14]}  Ke7 {[%clk 0:02:09]} 28. h4 {[%clk 0:00:13]}  Kd6 {[%clk 0:02:08]} 29. Kf3 {[%clk 0:00:13]}  Kc6 {[%clk 0:02:05]} 30. Ne6 {[%clk 0:00:13]}  g6 {[%clk 0:01:56]} 31. g5 {[%clk 0:00:13]}  f5 {[%clk 0:01:56]} 32. h5 {[%clk 0:00:13]}  Ra4 {[%clk 0:01:49]} 33. h6 {[%clk 0:00:10]}  Rxb4 {[%clk 0:01:46]} 34. cxb4 {[%clk 0:00:11]}  d4 {[%clk 0:01:46]} 35. Bg1 {[%clk 0:00:03]}  Kd5 {[%clk 0:01:34]} 36. Bh2 {[%clk 0:00:01]}  Kxe6 {[%clk 0:01:34]} 0-1

[Event "December 19 Early 2023"]
[Site "https://www.chess.com"]
[Date "2023.12.19"]
[Round "1"]
[White "Berezin, Viktor"]
[Black "Tabatabaei, M. Amin"]
[Result "0-1"]
[Board "18"]
[TimeControl "180+1"]
[WhiteFideId "14107872"]
[BlackFideId "12521213"]
[WhiteElo "2310"]
[BlackElo "2573"]
[WhiteTeam "UKR"]
[BlackTeam "IRI"]
[WhiteClock "0:00:41"]
[BlackClock "0:02:01"]

1. Nf3 {[%clk 0:02:52]}  d5 {[%clk 0:02:59]} 2. c4 {[%clk 0:02:52]}  c6 {[%clk 0:02:59]} 3. d4 {[%clk 0:02:50]}  Nf6 {[%clk 0:02:59]} 4. Nc3 {[%clk 0:02:49]}  e6 {[%clk 0:02:58]} 5. e3 {[%clk 0:02:49]}  Nbd7 {[%clk 0:02:58]} 6. Bd3 {[%clk 0:02:49]}  dxc4 {[%clk 0:02:57]} 7. Bxc4 {[%clk 0:02:48]}  b5 {[%clk 0:02:57]} 8. Bd3 {[%clk 0:02:47]}  a6 {[%clk 0:02:58]} 9. Ne4 {[%clk 0:02:41]}  Bb7 {[%clk 0:02:47]} 10. O-O {[%clk 0:02:39]}  c5 {[%clk 0:02:39]} 11. Nxf6+ {[%clk 0:02:26]}  Qxf6 {[%clk 0:02:34]} 12. e4 {[%clk 0:02:07]}  cxd4 {[%clk 0:02:30]} 13. Bg5 {[%clk 0:02:05]}  Qg6 {[%clk 0:02:30]} 14. Re1 {[%clk 0:01:21]}  Bb4 {[%clk 0:02:21]} 15. Bd2 {[%clk 0:01:13]}  Bxd2 {[%clk 0:02:17]} 16. Qxd2 {[%clk 0:01:14]}  O-O {[%clk 0:02:12]} 17. Nxd4 {[%clk 0:01:06]}  Ne5 {[%clk 0:02:12]} 18. Qe3 {[%clk 0:00:54]}  Rfd8 {[%clk 0:02:09]} 19. Kh1 {[%clk 0:00:51]}  Nxd3 {[%clk 0:02:05]} 20. Qxd3 {[%clk 0:00:49]}  e5 {[%clk 0:02:05]} 21. Rac1 {[%clk 0:00:47]}  Rxd4 {[%clk 0:02:04]} 22. Qe3 {[%clk 0:00:41]}  Rxe4 {[%clk 0:02:01]} 0-1

[Event "December 19 Early 2023"]
[Site "https://www.chess.com"]
[Date "2023.12.19"]
[Round "1"]
[White "Paravyan, David"]
[Black "Musalov, Ruslan"]
[Result "1-0"]
[Board "19"]
[TimeControl "180+1"]
[WhiteFideId "4194985"]
[BlackFideId "4141490"]
[WhiteElo "2566"]
[BlackElo "2268"]
[WhiteTeam "FID"]
[BlackTeam "RUS"]
[WhiteClock "0:00:45"]
[BlackClock "0:00:00"]

1. e4 {[%clk 0:03:00]}  c5 {[%clk 0:03:00]} 2. Nf3 {[%clk 0:02:52]}  d6 {[%clk 0:03:00]} 3. d4 {[%clk 0:02:51]}  cxd4 {[%clk 0:03:01]} 4. Nxd4 {[%clk 0:02:52]}  Nf6 {[%clk 0:03:02]} 5. Nc3 {[%clk 0:02:50]}  a6 {[%clk 0:03:02]} 6. f3 {[%clk 0:02:44]}  e5 {[%clk 0:03:02]} 7. Nb3 {[%clk 0:02:43]}  Be7 {[%clk 0:03:02]} 8. Be3 {[%clk 0:02:42]}  Be6 {[%clk 0:03:03]} 9. Qd2 {[%clk 0:02:41]}  O-O {[%clk 0:03:03]} 10. O-O-O {[%clk 0:02:41]}  Nbd7 {[%clk 0:03:03]} 11. g4 {[%clk 0:02:42]}  b5 {[%clk 0:03:04]} 12. g5 {[%clk 0:02:42]}  b4 {[%clk 0:03:05]} 13. gxf6 {[%clk 0:02:37]}  bxc3 {[%clk 0:03:03]} 14. Qxc3 {[%clk 0:02:38]}  Nxf6 {[%clk 0:03:02]} 15. Na5 {[%clk 0:02:38]}  Qd7 {[%clk 0:03:01]} 16. Qc6 {[%clk 0:02:35]}  Rfc8 {[%clk 0:02:58]} 17. Qxd7 {[%clk 0:02:32]}  Nxd7 {[%clk 0:02:58]} 18. b3 {[%clk 0:02:26]}  f5 {[%clk 0:02:29]} 19. Bc4 {[%clk 0:02:20]}  Bxc4 {[%clk 0:02:28]} 20. Nxc4 {[%clk 0:02:21]}  fxe4 {[%clk 0:02:28]} 21. fxe4 {[%clk 0:02:20]}  Rc6 {[%clk 0:02:24]} 22. Rhe1 {[%clk 0:02:03]}  h6 {[%clk 0:02:11]} 23. Kb2 {[%clk 0:02:01]}  Nf6 {[%clk 0:02:10]} 24. Nb6 {[%clk 0:01:48]}  Re8 {[%clk 0:02:03]} 25. Bg1 {[%clk 0:01:45]}  Bf8 {[%clk 0:00:57]} 26. c4 {[%clk 0:01:41]}  a5 {[%clk 0:00:48]} 27. a4 {[%clk 0:01:24]}  Rb8 {[%clk 0:00:45]} 28. c5 {[%clk 0:01:25]}  dxc5 {[%clk 0:00:40]} 29. Nc4 {[%clk 0:01:25]}  Ra6 {[%clk 0:00:22]} 30. Kc2 {[%clk 0:01:19]}  Ra7 {[%clk 0:00:18]} 31. Nxe5 {[%clk 0:01:17]}  Rab7 {[%clk 0:00:17]} 32. Nc6 {[%clk 0:01:11]}  Re8 {[%clk 0:00:09]} 33. e5 {[%clk 0:01:10]}  Ng4 {[%clk 0:00:07]} 34. h3 {[%clk 0:01:09]}  Rc7 {[%clk 0:00:07]} 35. Nxa5 {[%clk 0:01:03]}  Nxe5 {[%clk 0:00:07]} 36. Nc4 {[%clk 0:00:59]}  Rce7 {[%clk 0:00:08]} 37. Bxc5 {[%clk 0:00:54]}  Re6 {[%clk 0:00:02]} 38. Bxf8 {[%clk 0:00:51]}  Nxc4 {[%clk 0:00:02]} 39. Rxe6 {[%clk 0:00:52]}  Rxe6 {[%clk 0:00:02]} 40. bxc4 {[%clk 0:00:52]}  Kxf8 {[%clk 0:00:02]} 41. a5 {[%clk 0:00:45]}  Re3 {[%clk 0:00:03]} 42. Ra1 {[%clk 0:00:44]}  Ke7 {[%clk 0:00:00]} 43. a6 {[%clk 0:00:45]} 1-0

[Event "December 19 Early 2023"]
[Site "https://www.chess.com"]
[Date "2023.12.19"]
[Round "1"]
[White "Zimmermann, Ulrich"]
[Black "Esipenko, Andrey"]
[Result "1-0"]
[Board "20"]
[TimeControl "180+1"]
[WhiteFideId "24654523"]
[BlackFideId "24175439"]
[WhiteElo "2223"]
[BlackElo "2615"]
[WhiteTeam "GER"]
[BlackTeam "FID"]
[WhiteClock "0:00:20"]
[BlackClock "0:00:00"]

1. Nf3 {[%clk 0:03:00]}  b5 {[%clk 0:02:44]} 2. g3 {[%clk 0:03:01]}  Bb7 {[%clk 0:02:40]} 3. Bg2 {[%clk 0:03:02]}  g6 {[%clk 0:02:39]} 4. O-O {[%clk 0:03:03]}  Bg7 {[%clk 0:02:34]} 5. c3 {[%clk 0:03:03]}  a6 {[%clk 0:02:25]} 6. a4 {[%clk 0:03:03]}  d6 {[%clk 0:02:15]} 7. axb5 {[%clk 0:03:03]}  axb5 {[%clk 0:02:14]} 8. Rxa8 {[%clk 0:03:04]}  Bxa8 {[%clk 0:02:14]} 9. Qb3 {[%clk 0:03:05]}  c6 {[%clk 0:02:10]} 10. Na3 {[%clk 0:03:04]}  Nd7 {[%clk 0:02:06]} 11. Nd4 {[%clk 0:03:01]}  Qc8 {[%clk 0:02:04]} 12. d3 {[%clk 0:02:36]}  Ngf6 {[%clk 0:02:03]} 13. Bg5 {[%clk 0:02:32]}  O-O {[%clk 0:02:01]} 14. Ra1 {[%clk 0:02:32]}  Bb7 {[%clk 0:01:59]} 15. c4 {[%clk 0:02:25]}  Nc5 {[%clk 0:01:43]} 16. Qc2 {[%clk 0:02:20]}  h6 {[%clk 0:01:35]} 17. Bd2 {[%clk 0:02:17]}  bxc4 {[%clk 0:01:24]} 18. Nxc4 {[%clk 0:02:18]}  Nd5 {[%clk 0:01:18]} 19. Nb3 {[%clk 0:02:08]}  Na6 {[%clk 0:01:09]} 20. Nba5 {[%clk 0:01:55]}  Ba8 {[%clk 0:01:08]} 21. Bc3 {[%clk 0:01:40]}  Nxc3 {[%clk 0:01:05]} 22. bxc3 {[%clk 0:01:41]}  Qc7 {[%clk 0:00:46]} 23. Rb1 {[%clk 0:01:40]}  Rb8 {[%clk 0:00:39]} 24. Rxb8+ {[%clk 0:01:35]}  Nxb8 {[%clk 0:00:40]} 25. Nb3 {[%clk 0:01:33]}  d5 {[%clk 0:00:34]} 26. Ncd2 {[%clk 0:01:31]}  Nd7 {[%clk 0:00:28]} 27. c4 {[%clk 0:01:31]}  Qb8 {[%clk 0:00:28]} 28. h4 {[%clk 0:01:27]}  e6 {[%clk 0:00:27]} 29. Na5 {[%clk 0:01:06]}  Qb4 {[%clk 0:00:20]} 30. cxd5 {[%clk 0:00:40]}  Qxa5 {[%clk 0:00:09]} 31. dxc6 {[%clk 0:00:40]}  Nb6 {[%clk 0:00:00]} 32. c7 {[%clk 0:00:20]} 1-0

[Event "December 19 Early 2023"]
[Site "https://www.chess.com"]
[Date "2023.12.19"]
[Round "1"]
[White "Muradli, Mahammad"]
[Black "Dinu, Dumitru-Daniel"]
[Result "0-1"]
[Board "21"]
[TimeControl "180+1"]
[WhiteFideId "13409301"]
[BlackFideId "1208403"]
[WhiteElo "2551"]
[BlackElo "2240"]
[WhiteTeam "AZE"]
[BlackTeam "ROU"]
[WhiteClock "0:00:04"]
[BlackClock "0:00:18"]

1. Nf3 {[%clk 0:03:00]}  Nf6 {[%clk 0:02:58]} 2. b3 {[%clk 0:02:57]}  c5 {[%clk 0:02:49]} 3. c4 {[%clk 0:02:56]}  Nc6 {[%clk 0:02:49]} 4. Bb2 {[%clk 0:02:53]}  g6 {[%clk 0:02:47]} 5. g3 {[%clk 0:02:44]}  Bg7 {[%clk 0:02:47]} 6. Bg2 {[%clk 0:02:40]}  O-O {[%clk 0:02:46]} 7. O-O {[%clk 0:02:40]}  b6 {[%clk 0:02:37]} 8. d4 {[%clk 0:02:39]}  cxd4 {[%clk 0:02:33]} 9. Nxd4 {[%clk 0:02:39]}  Bb7 {[%clk 0:02:33]} 10. Nc3 {[%clk 0:02:40]}  a6 {[%clk 0:02:27]} 11. Rc1 {[%clk 0:02:29]}  Ra7 {[%clk 0:02:18]} 12. Nd5 {[%clk 0:02:19]}  e6 {[%clk 0:02:03]} 13. Nc3 {[%clk 0:02:01]}  Nxd4 {[%clk 0:01:51]} 14. Qxd4 {[%clk 0:02:02]}  Bxg2 {[%clk 0:01:51]} 15. Kxg2 {[%clk 0:02:02]}  d5 {[%clk 0:01:51]} 16. Rfd1 {[%clk 0:01:00]}  Rd7 {[%clk 0:01:49]} 17. c5 {[%clk 0:00:20]}  Ne4 {[%clk 0:01:29]} 18. Qxg7+ {[%clk 0:00:19]}  Kxg7 {[%clk 0:01:28]} 19. Nxe4+ {[%clk 0:00:20]}  f6 {[%clk 0:01:26]} 20. Ng5 {[%clk 0:00:17]}  Qe7 {[%clk 0:01:19]} 21. cxb6 {[%clk 0:00:08]}  e5 {[%clk 0:01:16]} 22. Nf3 {[%clk 0:00:05]}  Rb8 {[%clk 0:01:13]} 23. Rc6 {[%clk 0:00:04]}  d4 {[%clk 0:00:59]} 24. Rdc1 {[%clk 0:00:03]}  Qd8 {[%clk 0:00:56]} 25. Nd2 {[%clk 0:00:01]}  Rxb6 {[%clk 0:00:54]} 26. Rc8 {[%clk 0:00:02]}  Qe7 {[%clk 0:00:53]} 27. Nc4 {[%clk 0:00:02]}  Rbb7 {[%clk 0:00:48]} 28. Ba3 {[%clk 0:00:03]}  Qe6 {[%clk 0:00:45]} 29. Bf8+ {[%clk 0:00:04]}  Kf7 {[%clk 0:00:44]} 30. Bh6 {[%clk 0:00:03]}  Rdc7 {[%clk 0:00:36]} 31. Rf8+ {[%clk 0:00:03]}  Ke7 {[%clk 0:00:36]} 32. Rh8 {[%clk 0:00:03]}  Qd5+ {[%clk 0:00:28]} 33. f3 {[%clk 0:00:03]}  Ke6 {[%clk 0:00:29]} 34. Re8+ {[%clk 0:00:03]}  Re7 {[%clk 0:00:29]} 35. Rh8 {[%clk 0:00:02]}  Rbc7 {[%clk 0:00:26]} 36. Rd1 {[%clk 0:00:02]}  e4 {[%clk 0:00:25]} 37. Kf2 {[%clk 0:00:01]}  Qh5 {[%clk 0:00:19]} 38. Bf4 {[%clk 0:00:01]}  Qxh2+ {[%clk 0:00:19]} 39. Ke1 {[%clk 0:00:01]}  Qg1+ {[%clk 0:00:19]} 40. Kd2 {[%clk 0:00:02]}  e3+ {[%clk 0:00:19]} 41. Kc2 {[%clk 0:00:02]}  Qf2 {[%clk 0:00:18]} 42. Rxd4 {[%clk 0:00:01]}  Qxe2+ {[%clk 0:00:18]} 43. Kc3 {[%clk 0:00:02]}  Qe1+ {[%clk 0:00:17]} 44. Kb2 {[%clk 0:00:02]}  Qf2+ {[%clk 0:00:16]} 45. Ka3 {[%clk 0:00:02]}  Qxf3 {[%clk 0:00:16]} 46. Rd6+ {[%clk 0:00:01]}  Kf5 {[%clk 0:00:16]} 47. Rf8 {[%clk 0:00:02]}  Re6 {[%clk 0:00:15]} 48. Rd4 {[%clk 0:00:01]}  e2 {[%clk 0:00:13]} 49. Bd2 {[%clk 0:00:01]}  e1=Q {[%clk 0:00:13]} 50. Bxe1 {[%clk 0:00:02]}  Rxe1 {[%clk 0:00:13]} 51. Rf4+ {[%clk 0:00:03]}  Qxf4 {[%clk 0:00:14]} 52. gxf4 {[%clk 0:00:04]}  Re6 {[%clk 0:00:14]} 53. Nd2 {[%clk 0:00:02]}  Kxf4 {[%clk 0:00:14]} 54. Nc4 {[%clk 0:00:01]}  h5 {[%clk 0:00:13]} 55. Rg8 {[%clk 0:00:01]}  g5 {[%clk 0:00:13]} 56. Kb4 {[%clk 0:00:01]}  h4 {[%clk 0:00:13]} 57. a4 {[%clk 0:00:02]}  h3 {[%clk 0:00:14]} 58. a5 {[%clk 0:00:02]}  g4 {[%clk 0:00:14]} 59. Nb6 {[%clk 0:00:02]}  h2 {[%clk 0:00:14]} 60. Rh8 {[%clk 0:00:02]}  g3 {[%clk 0:00:14]} 61. Nd5+ {[%clk 0:00:03]}  Kf3 {[%clk 0:00:15]} 62. Nxc7 {[%clk 0:00:04]}  Re4+ {[%clk 0:00:14]} 63. Kc5 {[%clk 0:00:04]}  g2 {[%clk 0:00:14]} 64. Rxh2 {[%clk 0:00:03]}  g1=Q+ {[%clk 0:00:15]} 65. Kc6 {[%clk 0:00:04]}  Qxh2 {[%clk 0:00:15]} 66. Nxa6 {[%clk 0:00:04]}  Re6+ {[%clk 0:00:16]} 67. Kb5 {[%clk 0:00:04]}  Rxa6 {[%clk 0:00:17]} 68. Kxa6 {[%clk 0:00:04]}  Qd6+ {[%clk 0:00:17]} 69. Kb5 {[%clk 0:00:04]}  Qd5+ {[%clk 0:00:17]} 70. Ka4 {[%clk 0:00:05]}  Qc6+ {[%clk 0:00:17]} 71. Kb4 {[%clk 0:00:05]}  Ke4 {[%clk 0:00:18]} 72. Ka3 {[%clk 0:00:04]}  Qb5 {[%clk 0:00:18]} 73. b4 {[%clk 0:00:04]}  f5 {[%clk 0:00:18]} 0-1

[Event "December 19 Early 2023"]
[Site "https://www.chess.com"]
[Date "2023.12.19"]
[Round "1"]
[White "Manukyan, Artyom"]
[Black "Ivic, Velimir"]
[Result "0-1"]
[Board "22"]
[TimeControl "180+1"]
[WhiteFideId "13305786"]
[BlackFideId "950122"]
[WhiteElo "2103"]
[BlackElo "2542"]
[WhiteTeam "ARM"]
[BlackTeam "SRB"]
[WhiteClock "0:00:11"]
[BlackClock "0:00:59"]

1. e4 {[%clk 0:03:00]}  c5 {[%clk 0:03:00]} 2. Nc3 {[%clk 0:02:59]}  Nc6 {[%clk 0:02:59]} 3. Bb5 {[%clk 0:02:58]}  e6 {[%clk 0:02:54]} 4. Bxc6 {[%clk 0:02:54]}  bxc6 {[%clk 0:02:55]} 5. d3 {[%clk 0:02:55]}  d5 {[%clk 0:02:51]} 6. f4 {[%clk 0:02:55]}  Ba6 {[%clk 0:02:48]} 7. Nf3 {[%clk 0:02:53]}  c4 {[%clk 0:02:49]} 8. e5 {[%clk 0:02:34]}  cxd3 {[%clk 0:02:46]} 9. cxd3 {[%clk 0:02:35]}  Bc5 {[%clk 0:02:45]} 10. d4 {[%clk 0:02:34]}  Bb6 {[%clk 0:02:46]} 11. Kf2 {[%clk 0:02:34]}  c5 {[%clk 0:02:44]} 12. Na4 {[%clk 0:02:29]}  cxd4 {[%clk 0:02:41]} 13. Nxb6 {[%clk 0:02:28]}  axb6 {[%clk 0:02:33]} 14. Qxd4 {[%clk 0:02:18]}  Ne7 {[%clk 0:02:33]} 15. Rd1 {[%clk 0:02:13]}  Nf5 {[%clk 0:02:32]} 16. Qb4 {[%clk 0:02:13]}  Rc8 {[%clk 0:02:18]} 17. Kg1 {[%clk 0:02:07]}  Be2 {[%clk 0:02:16]} 18. Re1 {[%clk 0:01:40]}  Bxf3 {[%clk 0:02:16]} 19. gxf3 {[%clk 0:01:41]}  Rc4 {[%clk 0:02:11]} 20. Qb5+ {[%clk 0:01:39]}  Qd7 {[%clk 0:02:11]} 21. Qxd7+ {[%clk 0:01:28]}  Kxd7 {[%clk 0:02:12]} 22. Be3 {[%clk 0:01:27]}  b5 {[%clk 0:02:07]} 23. b3 {[%clk 0:01:18]}  Rc3 {[%clk 0:02:07]} 24. Kf2 {[%clk 0:01:16]}  Rhc8 {[%clk 0:02:05]} 25. Re2 {[%clk 0:01:15]}  Rd3 {[%clk 0:02:00]} 26. a4 {[%clk 0:00:40]}  Rcc3 {[%clk 0:01:51]} 27. a5 {[%clk 0:00:40]}  Kc8 {[%clk 0:01:37]} 28. a6 {[%clk 0:00:39]}  Kb8 {[%clk 0:01:38]} 29. a7+ {[%clk 0:00:39]}  Ka8 {[%clk 0:01:38]} 30. Bb6 {[%clk 0:00:38]}  Rxf3+ {[%clk 0:01:37]} 31. Kg1 {[%clk 0:00:38]}  Rc6 {[%clk 0:01:21]} 32. Bf2 {[%clk 0:00:31]}  Rxb3 {[%clk 0:01:19]} 33. Raa2 {[%clk 0:00:21]}  d4 {[%clk 0:01:16]} 34. Red2 {[%clk 0:00:17]}  Rb4 {[%clk 0:01:10]} 35. Kg2 {[%clk 0:00:14]}  Rc7 {[%clk 0:01:08]} 36. Rdb2 {[%clk 0:00:10]}  Rxb2 {[%clk 0:01:03]} 37. Rxb2 {[%clk 0:00:11]}  Kxa7 {[%clk 0:01:01]} 38. Rxb5 {[%clk 0:00:11]}  Ka6 {[%clk 0:01:01]} 39. Rb4 {[%clk 0:00:10]}  Rb7 {[%clk 0:01:01]} 40. Ra4+ {[%clk 0:00:10]}  Kb5 {[%clk 0:01:01]} 41. Ra1 {[%clk 0:00:11]}  Kc4 {[%clk 0:01:00]} 42. Rc1+ {[%clk 0:00:10]}  Kd5 {[%clk 0:00:59]} 43. Kf3 {[%clk 0:00:11]}  Rb3+ {[%clk 0:00:59]} 44. Kg2 {[%clk 0:00:11]}  Ke4 {[%clk 0:00:59]} 0-1

[Event "December 19 Early 2023"]
[Site "https://www.chess.com"]
[Date "2023.12.19"]
[Round "1"]
[White "Terry, Renato"]
[Black "Hamley, Ryan"]
[Result "1-0"]
[Board "23"]
[TimeControl "180+1"]
[WhiteFideId "3803457"]
[BlackFideId "30959497"]
[WhiteElo "2578"]
[BlackElo "2510"]
[WhiteTeam "PER"]
[BlackTeam "USA"]
[WhiteClock "0:01:18"]
[BlackClock "0:00:14"]

1. Nf3 {[%clk 0:03:00]}  Nf6 {[%clk 0:02:59]} 2. g3 {[%clk 0:02:59]}  d5 {[%clk 0:02:56]} 3. Bg2 {[%clk 0:03:00]}  Bf5 {[%clk 0:02:56]} 4. Nh4 {[%clk 0:02:55]}  Bc8 {[%clk 0:02:45]} 5. d3 {[%clk 0:02:52]}  c6 {[%clk 0:02:42]} 6. O-O {[%clk 0:02:52]}  g6 {[%clk 0:02:42]} 7. Nc3 {[%clk 0:02:49]}  Bg7 {[%clk 0:02:42]} 8. e4 {[%clk 0:02:49]}  O-O {[%clk 0:02:36]} 9. Qe1 {[%clk 0:02:41]}  dxe4 {[%clk 0:02:18]} 10. dxe4 {[%clk 0:02:41]}  e5 {[%clk 0:02:15]} 11. Be3 {[%clk 0:02:40]}  Qc7 {[%clk 0:02:09]} 12. Rd1 {[%clk 0:02:36]}  Be6 {[%clk 0:01:56]} 13. b3 {[%clk 0:02:25]}  Nbd7 {[%clk 0:01:48]} 14. Na4 {[%clk 0:02:23]}  b5 {[%clk 0:01:44]} 15. Nc5 {[%clk 0:02:22]}  Nxc5 {[%clk 0:01:45]} 16. Bxc5 {[%clk 0:02:23]}  Rfd8 {[%clk 0:01:45]} 17. Qe3 {[%clk 0:02:15]}  Nd7 {[%clk 0:01:10]} 18. Be7 {[%clk 0:02:05]}  Re8 {[%clk 0:01:10]} 19. Bd6 {[%clk 0:02:05]}  Qb6 {[%clk 0:01:10]} 20. Rfe1 {[%clk 0:01:56]}  a5 {[%clk 0:00:51]} 21. Nf3 {[%clk 0:01:50]}  Bg4 {[%clk 0:00:45]} 22. Qxb6 {[%clk 0:01:42]}  Nxb6 {[%clk 0:00:46]} 23. h3 {[%clk 0:01:42]}  Bxf3 {[%clk 0:00:46]} 24. Bxf3 {[%clk 0:01:43]}  a4 {[%clk 0:00:46]} 25. Bc7 {[%clk 0:01:36]}  Nc8 {[%clk 0:00:45]} 26. Bg4 {[%clk 0:01:36]}  axb3 {[%clk 0:00:40]} 27. axb3 {[%clk 0:01:37]}  Bf8 {[%clk 0:00:39]} 28. Bd7 {[%clk 0:01:33]}  Re7 {[%clk 0:00:37]} 29. Bxc6 {[%clk 0:01:33]}  Ra2 {[%clk 0:00:35]} 30. Bd8 {[%clk 0:01:33]}  Rea7 {[%clk 0:00:31]} 31. Re2 {[%clk 0:01:25]}  Ne7 {[%clk 0:00:29]} 32. Bxb5 {[%clk 0:01:23]}  Ra8 {[%clk 0:00:26]} 33. Bc7 {[%clk 0:01:18]}  Rc8 {[%clk 0:00:25]} 34. Rd7 {[%clk 0:01:18]}  Ra7 {[%clk 0:00:14]} 35. Bxe5 {[%clk 0:01:18]} 1-0

[Event "December 19 Early 2023"]
[Site "https://www.chess.com"]
[Date "2023.12.19"]
[Round "1"]
[White "Vokhidov, Shamsiddin"]
[Black "Korkmaz, Necmettin"]
[Result "1-0"]
[Board "27"]
[TimeControl "180+1"]
[WhiteFideId "14204223"]
[BlackFideId "6303285"]
[WhiteElo "2588"]
[BlackElo "2044"]
[WhiteTeam "UZB"]
[BlackTeam "TUR"]
[WhiteClock "0:01:05"]
[BlackClock "0:00:00"]

1. e4 {[%clk 0:03:00]}  e6 {[%clk 0:02:55]} 2. d4 {[%clk 0:03:00]}  d5 {[%clk 0:02:48]} 3. e5 {[%clk 0:03:01]}  c5 {[%clk 0:02:47]} 4. c3 {[%clk 0:03:02]}  Nc6 {[%clk 0:02:47]} 5. Nf3 {[%clk 0:03:03]}  Qb6 {[%clk 0:02:46]} 6. Be2 {[%clk 0:03:03]}  cxd4 {[%clk 0:02:42]} 7. cxd4 {[%clk 0:03:04]}  Nge7 {[%clk 0:02:41]} 8. Na3 {[%clk 0:03:04]}  Nf5 {[%clk 0:02:38]} 9. Nc2 {[%clk 0:03:05]}  Nb4 {[%clk 0:02:32]} 10. Ne3 {[%clk 0:03:04]}  Nxe3 {[%clk 0:02:28]} 11. Bxe3 {[%clk 0:03:05]}  Bd7 {[%clk 0:02:26]} 12. a3 {[%clk 0:03:04]}  Nc6 {[%clk 0:02:25]} 13. b4 {[%clk 0:03:04]}  Be7 {[%clk 0:02:23]} 14. O-O {[%clk 0:03:02]}  O-O {[%clk 0:02:20]} 15. Bd3 {[%clk 0:03:02]}  a6 {[%clk 0:02:11]} 16. Qd2 {[%clk 0:02:59]}  Na7 {[%clk 0:02:06]} 17. Bg5 {[%clk 0:02:56]}  Bxg5 {[%clk 0:02:00]} 18. Nxg5 {[%clk 0:02:55]}  h6 {[%clk 0:01:59]} 19. Nf3 {[%clk 0:02:53]}  Bb5 {[%clk 0:01:59]} 20. Rfc1 {[%clk 0:02:52]}  Bxd3 {[%clk 0:01:58]} 21. Qxd3 {[%clk 0:02:53]}  Rac8 {[%clk 0:01:59]} 22. Rc5 {[%clk 0:02:52]}  Rc6 {[%clk 0:01:53]} 23. Nd2 {[%clk 0:02:48]}  Rfc8 {[%clk 0:01:47]} 24. Nb3 {[%clk 0:02:48]}  Nb5 {[%clk 0:01:46]} 25. g3 {[%clk 0:02:42]}  Na7 {[%clk 0:01:25]} 26. Kg2 {[%clk 0:02:40]}  Rxc5 {[%clk 0:01:21]} 27. dxc5 {[%clk 0:02:38]}  Qb5 {[%clk 0:01:20]} 28. Qe3 {[%clk 0:02:34]}  Nc6 {[%clk 0:01:16]} 29. Nd4 {[%clk 0:02:28]}  Nxd4 {[%clk 0:01:14]} 30. Qxd4 {[%clk 0:02:28]}  a5 {[%clk 0:01:14]} 31. Rc1 {[%clk 0:02:04]}  axb4 {[%clk 0:01:10]} 32. Qxb4 {[%clk 0:02:00]}  Qxb4 {[%clk 0:00:56]} 33. axb4 {[%clk 0:01:59]}  Ra8 {[%clk 0:00:48]} 34. Kf3 {[%clk 0:01:43]}  Kf8 {[%clk 0:00:48]} 35. b5 {[%clk 0:01:33]}  Ke8 {[%clk 0:00:43]} 36. c6 {[%clk 0:01:33]}  bxc6 {[%clk 0:00:43]} 37. Rxc6 {[%clk 0:01:31]}  Ra3+ {[%clk 0:00:43]} 38. Kg2 {[%clk 0:01:26]}  Rb3 {[%clk 0:00:42]} 39. b6 {[%clk 0:01:24]}  g5 {[%clk 0:00:42]} 40. h3 {[%clk 0:01:17]}  Kf8 {[%clk 0:00:42]} 41. Rc8+ {[%clk 0:01:10]}  Kg7 {[%clk 0:00:42]} 42. Rb8 {[%clk 0:01:10]}  d4 {[%clk 0:00:39]} 43. b7 {[%clk 0:01:07]}  h5 {[%clk 0:00:36]} 44. g4 {[%clk 0:01:06]}  hxg4 {[%clk 0:00:34]} 45. hxg4 {[%clk 0:01:07]}  d3 {[%clk 0:00:32]} 46. Kf3 {[%clk 0:01:06]}  Rb5 {[%clk 0:00:31]} 47. Ke3 {[%clk 0:01:03]}  Rxe5+ {[%clk 0:00:31]} 48. Kxd3 {[%clk 0:01:04]}  Rb5 {[%clk 0:00:31]} 49. Kc4 {[%clk 0:01:04]}  Rb1 {[%clk 0:00:31]} 50. Kc5 {[%clk 0:01:05]}  Rc1+ {[%clk 0:00:27]} 51. Kd6 {[%clk 0:01:05]}  Rb1 {[%clk 0:00:26]} 52. Kc6 {[%clk 0:01:05]}  Rc1+ {[%clk 0:00:26]} 53. Kd7 {[%clk 0:01:05]}  Rb1 {[%clk 0:00:26]} 54. Ke7 {[%clk 0:01:04]}  Rb2 {[%clk 0:00:25]} 55. Kd7 {[%clk 0:01:04]}  Rb1 {[%clk 0:00:24]} 56. Kd6 {[%clk 0:01:05]}  Rb5 {[%clk 0:00:22]} 57. Kc6 {[%clk 0:01:05]}  Rb2 {[%clk 0:00:12]} 58. Ra8 {[%clk 0:01:04]}  Rc2+ {[%clk 0:00:00]} 59. Kd6 {[%clk 0:01:05]} 1-0